bitfinex/quotes_BTCUSD_20241229
["timestamp","ask_amount","ask_price","bid_price","bid_amount"]
[1735508966318,0.0049159,93709.0,93708.0,8.54e-05]
[1735508966548,4.5632909,93709.0,93708.0,8.54e-05]
[1735508967444,4.61738721,93709.0,93708.0,8.54e-05]
[1735508967677,0.00439631,93697.0,93676.0,0.00058946]
[1735508967911,4.558375,93696.0,93676.0,0.00058946]
[1735508968103,4.558375,93696.0,93664.0,0.000106]
[1735508968104,0.0049159,93674.0,93664.0,0.000106]
[1735508968309,4.558375,93673.0,93664.0,0.000106]
[1735508968641,4.5632909,93674.0,93664.0,0.000106]
[1735508968844,4.558375,93673.0,93664.0,0.000106]
[1735508969045,4.558375,93673.0,93664.0,0.00061537]
[1735508970189,4.003,93674.0,93664.0,0.00061537]
[1735508970388,0.0049159,93681.0,93664.0,0.00061537]
[1735508970571,4.558375,93680.0,93664.0,0.00061537]
[1735508971154,4.5632909,93681.0,93664.0,0.00061537]
[1735508971377,4.558375,93680.0,93664.0,0.00061537]
[1735508971653,0.002,93674.0,93664.0,0.00061537]
[1735508971859,4.558375,93673.0,93664.0,0.00061537]
[1735508972564,4.373,93673.0,93664.0,0.00061537]
[1735508972746,4.558375,93672.0,93665.0,0.048]
[1735508973197,4.558375,93673.0,93665.0,0.048]
[1735508973415,4.558375,93680.0,93665.0,0.048]
[1735508973587,4.558375,93672.0,93665.0,0.048]
[1735508973790,4.558375,93671.0,93665.0,0.048]
[1735508973987,4.558375,93680.0,93665.0,0.048]
[1735508975051,0.00439631,93680.0,93654.0,0.0950841]
[1735508975249,4.558375,93679.0,93654.0,0.0950841]
[1735508975868,4.558375,93679.0,93647.0,0.0488]
[1735508975869,0.00439631,93673.0,93647.0,0.0488]
[1735508976075,4.558375,93672.0,93647.0,0.0488]
[1735508976694,0.00439631,93678.0,93651.0,0.0950841]
[1735508976897,4.558375,93677.0,93651.0,0.0950841]
[1735508977112,0.005,93673.0,93651.0,0.09123819]
[1735508977312,4.558375,93672.0,93651.0,0.09123819]
[1735508977488,0.00439631,93679.0,93651.0,0.09123819]
[1735508977693,4.558375,93678.0,93651.0,0.09123819]
[1735508977895,0.002,93672.0,93651.0,0.09123819]
[1735508978090,4.558375,93671.0,93651.0,0.09123819]
[1735508978268,4.558375,93671.0,93654.0,0.09560369]
[1735508978471,0.0001082,93680.0,93654.0,0.09560369]
[1735508978472,4.558375,93679.0,93654.0,0.09560369]
[1735508978676,4.561375,93679.0,93654.0,0.09560369]
[1735508979023,4.58877532,93678.0,93654.0,0.09560369]
[1735508979225,4.558375,93677.0,93654.0,0.09560369]
[1735508979430,0.005,93672.0,93661.0,0.0488]
[1735508979638,4.558375,93671.0,93661.0,0.0488]
[1735508980040,4.558375,93678.0,93661.0,0.0488]
[1735508980241,0.042813,93670.0,93661.0,0.0488]
[1735508980479,4.558375,93669.0,93661.0,0.0488]
[1735508982957,4.562375,93669.0,93654.0,0.09123819]
[1735508983160,4.558375,93668.0,93654.0,0.09123819]
[1735508983396,4.558375,93668.0,93652.0,8.55e-05]
[1735508983583,4.562375,93669.0,93652.0,8.55e-05]
[1735508983870,4.558375,93668.0,93652.0,8.55e-05]
[1735508984248,4.561375,93669.0,93652.0,8.55e-05]
[1735508984447,4.559375,93668.0,93652.0,8.55e-05]
[1735508984646,4.558375,93667.0,93652.0,8.55e-05]
[1735508985226,4.558375,93669.0,93652.0,8.55e-05]
[1735508985421,0.001,93668.0,93652.0,8.55e-05]
[1735508985638,4.558375,93667.0,93652.0,8.55e-05]
[1735508986823,4.558375,93667.0,93666.0,0.21980369]
[1735508987153,4.558375,93669.0,93666.0,0.1242]
[1735508987380,0.004,93667.0,93666.0,0.1242]
[1735508987569,4.562375,93667.0,93666.0,0.1242]
[1735508987802,4.561375,93667.0,93666.0,0.1242]
[1735508988766,4.561375,93667.0,93655.0,0.0775]
[1735508988970,4.558375,93666.0,93655.0,0.0775]
[1735508989138,4.558375,93666.0,93655.0,0.0748159]
[1735508989339,4.558375,93669.0,93655.0,0.0748159]
[1735508989549,4.563375,93669.0,93655.0,0.0748159]
[1735508989755,4.558375,93668.0,93655.0,0.0748159]
[1735508989967,3.174,93669.0,93666.0,0.09560369]
[1735508990170,4.558375,93669.0,93667.0,0.0467]
[1735508990603,4.561375,93669.0,93667.0,0.0467]
[1735508990809,4.558375,93668.0,93667.0,0.0467]
[1735508991258,4.55828195,93668.0,93667.0,0.0467]
[1735508991666,4.558282,93669.0,93667.0,0.0467]
[1735508991916,4.558282,93668.0,93656.0,0.0467]
[1735508992112,4.558282,93667.0,93656.0,0.0467]
[1735508992317,0.042813,93670.0,93666.0,0.09460369]
[1735508992439,0.042813,93670.0,93656.0,0.0467]
[1735508992440,4.559282,93669.0,93663.0,0.09460369]
[1735508992644,4.558282,93668.0,93663.0,0.09460369]
[1735508992892,4.558282,93669.0,93656.0,0.14130369]
[1735508993043,0.004171,93668.0,93656.0,0.14130369]
[1735508993239,4.558282,93667.0,93656.0,0.14130369]
[1735508993691,4.558282,93667.0,93658.0,0.09460369]
[1735508995628,4.558282,93667.0,93656.0,0.14130369]
[1735508995838,4.558282,93667.0,93658.0,0.09460369]
[1735508996410,4.558282,93667.0,93666.0,0.09460369]
[1735508997267,4.558282,93667.0,93656.0,0.0467]
[1735508997268,4.558282,93667.0,93662.0,0.09460369]
[1735508997472,4.558282,93667.0,93663.0,0.09460369]
[1735508998080,4.559282,93667.0,93663.0,0.09460369]
[1735508998385,4.558282,93666.0,93663.0,0.09460369]
[1735508998804,4.558282,93667.0,93663.0,0.09460369]
[1735508999759,4.558282,93667.0,93664.0,0.09460369]
[1735508999944,0.003,93667.0,93664.0,0.09460369]
[1735509000340,4.558282,93666.0,93664.0,0.09460369]
[1735509001137,4.559282,93667.0,93664.0,0.09460369]
[1735509001365,4.558282,93666.0,93664.0,0.09460369]
[1735509001772,4.558282,93667.0,93665.0,0.1254]
[1735509002253,0.02009924,93666.0,93652.0,0.1254855]
[1735509002468,4.558282,93665.0,93652.0,0.1254855]
[1735509002841,4.558282,93665.0,93643.0,0.0458]
[1735509003056,4.56704381,93665.0,93636.0,0.09460369]
[1735509003321,0.00876181,93661.0,93636.0,0.09460369]
[1735509003443,4.558282,93660.0,93636.0,0.09460369]
[1735509004090,0.02009924,93659.0,93655.0,0.09460369]
[1735509004319,4.57838124,93659.0,93656.0,0.0458]
[1735509004444,4.558282,93658.0,93656.0,0.0458]
[1735509004891,4.558282,93658.0,93644.0,0.13703819]
[1735509005096,4.558282,93657.0,93649.0,0.09460369]
[1735509005273,0.28591734,93663.0,93644.0,0.13703819]
[1735509005274,4.128,93656.0,93652.0,0.09460369]
[1735509005499,4.558282,93662.0,93652.0,0.09460369]
[1735509005695,4.558282,93662.0,93644.0,0.13703819]
[1735509005696,0.09493551,93654.0,93653.0,0.09460369]
[1735509005893,4.65321751,93654.0,93653.0,0.17420369]
[1735509006099,2.97593551,93654.0,93653.0,0.17420369]
[1735509006298,2.70193551,93654.0,93653.0,0.09460369]
[1735509006510,2.70193551,93654.0,93653.0,0.22000369]
[1735509006703,2.62593551,93654.0,93653.0,0.22000369]
[1735509006928,1.659,93654.0,93653.0,0.21699937]
[1735509007149,2.641,93660.0,93659.0,0.09159937]
[1735509007322,0.09493551,93661.0,93660.0,0.09159937]
[1735509007924,3.38693551,93661.0,93660.0,0.09159937]
[1735509008158,4.62193551,93662.0,93660.0,0.08828872]
[1735509008365,4.62193551,93662.0,93630.0,0.1]
[1735509008366,0.04493551,93662.0,93661.0,0.25912691]
[1735509008570,0.14240327,93665.0,93664.0,0.25912691]
[1735509008793,0.09240327,93665.0,93664.0,0.30392691]
[1735509009003,0.01430327,93665.0,93664.0,0.30392691]
[1735509009211,0.0764163,93668.0,93667.0,0.27852691]
[1735509009833,0.23733878,93693.0,93679.0,0.08828872]
[1735509010531,0.23733878,93693.0,93679.0,0.08728872]
[1735509010738,0.23733878,93693.0,93679.0,0.50691323]
[1735509010919,0.23733878,93709.0,93679.0,0.50691323]
[1735509011051,0.0011082,93680.0,93679.0,0.50591323]
[1735509011256,0.0001082,93680.0,93679.0,0.55650455]
[1735509011753,0.0011082,93680.0,93679.0,0.55650455]
[1735509012529,0.0001082,93680.0,93679.0,0.55650455]
[1735509012767,0.03113505,93712.0,93711.0,0.08628872]
[1735509012945,0.0316454,93712.0,93711.0,0.08528872]
[1735509013575,0.00051035,93712.0,93711.0,0.08428872]
[1735509014067,4.55879235,93712.0,93711.0,0.08428872]
[1735509014401,4.55979235,93712.0,93711.0,0.08428872]
[1735509014610,4.55979235,93712.0,93711.0,0.08528872]
[1735509015026,4.55979235,93712.0,93711.0,0.06736772]
[1735509015229,4.55979235,93712.0,93711.0,0.04944672]
[1735509016846,4.55996295,93712.0,93711.0,0.04944672]
[1735509017424,4.55996295,93712.0,93711.0,0.001]
[1735509017966,4.55996295,93712.0,93711.0,0.04944672]
[1735509018515,4.55896295,93712.0,93711.0,0.04844672]
[1735509018718,4.56296295,93712.0,93711.0,0.04844672]
[1735509019511,4.56196295,93712.0,93711.0,0.04844672]
[1735509020645,4.55896295,93712.0,93711.0,0.04844672]
[1735509021588,4.55896295,93712.0,93711.0,0.04944672]
[1735509022191,4.55896295,93712.0,93711.0,0.04844672]
[1735509022554,4.55896295,93712.0,93711.0,0.04944672]
[1735509022758,4.55301904,93712.0,93711.0,0.04944672]
[1735509023006,0.1303,93711.0,93653.0,0.1788]
[1735509023203,0.1303,93711.0,93654.0,0.01836764]
[1735509023204,4.683149,93711.0,93654.0,0.01836764]
[1735509023450,0.01530137,93706.0,93675.0,0.08469863]
[1735509023654,4.552849,93705.0,93675.0,0.08469863]
[1735509023966,0.0811,93703.0,93667.0,0.08469863]
[1735509024158,4.56815037,93702.0,93671.0,0.08469863]
[1735509024460,0.09514055,93693.0,93671.0,0.08469863]
[1735509024653,4.552849,93692.0,93671.0,0.08469863]
[1735509024903,4.552849,93691.0,93671.0,0.08469863]
[1735509025108,4.552849,93690.0,93671.0,0.08464863]
[1735509025360,4.552849,93689.0,93671.0,0.08464863]
[1735509025561,4.552849,93688.0,93671.0,0.08464863]
[1735509025791,4.552849,93687.0,93653.0,0.0788]
[1735509026082,4.602049,93686.0,93653.0,0.0788]
[1735509026287,0.09514055,93684.0,93653.0,0.0788]
[1735509026438,4.552849,93683.0,93666.0,0.08464863]
[1735509026642,4.552849,93682.0,93653.0,0.0788]
[1735509026822,4.552849,93681.0,93653.0,0.0788]
[1735509027024,4.552849,93680.0,93653.0,0.0788]
[1735509027224,4.552849,93679.0,93653.0,0.0788]
[1735509027427,4.552849,93678.0,93653.0,0.0788]
[1735509027633,4.552849,93677.0,93653.0,0.07926035]
[1735509027874,4.552849,93676.0,93661.0,0.08464863]
[1735509028025,4.552849,93675.0,93666.0,0.08464863]
[1735509028373,4.552849,93674.0,93666.0,0.08464863]
[1735509028523,4.552849,93673.0,93666.0,0.08464863]
[1735509028732,4.552849,93672.0,93666.0,0.08464863]
[1735509028933,4.552849,93671.0,93666.0,0.08464863]
[1735509029131,4.552849,93670.0,93666.0,0.08464863]
[1735509029398,4.552849,93669.0,93666.0,0.08464863]
[1735509029556,0.09514055,93677.0,93666.0,0.08464863]
[1735509029961,4.552849,93676.0,93666.0,0.08464863]
[1735509031024,0.001,93672.0,93666.0,0.08464863]
[1735509031230,4.552849,93671.0,93666.0,0.08459863]
[1735509031502,4.552849,93676.0,93666.0,0.08459863]
[1735509031703,4.552849,93676.0,93659.0,0.08459863]
[1735509031905,0.00162744,93675.0,93660.0,0.08459863]
[1735509032141,4.552849,93674.0,93659.0,0.08454863]
[1735509032316,4.55456425,93674.0,93659.0,0.08454863]
[1735509032518,4.552849,93673.0,93659.0,0.08454863]
[1735509033126,0.00171525,93672.0,93663.0,0.08454863]
[1735509033310,4.552849,93673.0,93663.0,0.08454863]
[1735509033489,0.00171525,93671.0,93663.0,0.08454863]
[1735509033697,4.552849,93670.0,93663.0,0.08454863]
[1735509033921,0.00171525,93670.0,93663.0,0.08449863]
[1735509034120,0.00171525,93670.0,93666.0,0.08449863]
[1735509034121,4.552849,93669.0,93666.0,0.08449863]
[1735509034321,3.321,93668.0,93666.0,0.08449863]
[1735509034474,0.00171525,93668.0,93666.0,0.08449863]
[1735509034669,4.552849,93667.0,93666.0,0.08449863]
[1735509034890,0.00171525,93667.0,93666.0,0.08444863]
[1735509035095,2.293,93671.0,93666.0,0.08444863]
[1735509035296,0.00171525,93667.0,93666.0,0.08444863]
[1735509035490,2.473,93667.0,93666.0,0.08444863]
[1735509035760,2.51271525,93667.0,93666.0,0.08444863]
[1735509035964,2.78471525,93667.0,93666.0,0.08444863]
[1735509036365,1.98071525,93667.0,93666.0,0.08444863]
[1735509036570,1.98071525,93667.0,93666.0,0.08439863]
[1735509036728,1.80271525,93667.0,93666.0,0.08439863]
[1735509036930,1.80371525,93667.0,93666.0,0.08439863]
[1735509037739,1.80371525,93667.0,93666.0,0.08434863]
[1735509037938,1.67271525,93667.0,93666.0,0.08434863]
[1735509038346,1.51371525,93667.0,93666.0,0.08434863]
[1735509038571,1.12271525,93667.0,93666.0,0.08434863]
[1735509038773,0.85971525,93667.0,93666.0,0.08434863]
[1735509039129,0.85971525,93667.0,93666.0,0.08429863]
[1735509040337,0.85971525,93667.0,93666.0,0.08424863]
[1735509041480,0.85971525,93667.0,93666.0,0.08419863]
[1735509042602,0.54083123,93667.0,93666.0,0.08419863]
[1735509042802,0.00164144,93667.0,93666.0,0.08414863]
[1735509043159,0.09514055,93672.0,93666.0,0.08414863]
[1735509043160,3.084,93669.0,93666.0,0.08414863]
[1735509043364,0.00164144,93667.0,93666.0,0.08414863]
[1735509043566,3.191,93667.0,93666.0,0.08414863]
[1735509043762,3.31364144,93667.0,93666.0,0.08409863]
[1735509043965,3.02564144,93667.0,93666.0,0.08409863]
[1735509045169,3.02564144,93667.0,93663.0,0.08409863]
[1735509045374,4.236681,93666.0,93659.0,8.53e-05]
[1735509045575,4.236681,93665.0,93663.0,0.08409863]
[1735509045789,4.236681,93664.0,93663.0,0.08409863]
[1735509046103,4.236681,93664.0,93659.0,8.53e-05]
[1735509046104,4.28752013,93664.0,93659.0,8.53e-05]
[1735509046449,4.236681,93663.0,93659.0,8.53e-05]
[1735509046746,4.23831488,93662.0,93659.0,8.53e-05]
[1735509047042,0.00163388,93662.0,93659.0,8.53e-05]
[1735509047274,4.236681,93661.0,93659.0,8.53e-05]
[1735509047649,0.0492,93664.0,93659.0,8.53e-05]
[1735509047650,0.00163388,93660.0,93659.0,8.53e-05]
[1735509047805,0.07793388,93660.0,93659.0,8.53e-05]
[1735509048012,0.08185627,93660.0,93659.0,8.53e-05]
[1735509048244,4.32016649,93660.0,93659.0,8.53e-05]
[1735509048613,4.32016649,93660.0,93659.0,3.53e-05]
[1735509049347,4.32116649,93660.0,93659.0,3.53e-05]
[1735509050125,4.55898122,93660.0,93659.0,3.53e-05]
[1735509050688,4.56098122,93660.0,93659.0,3.53e-05]
[1735509051280,4.32316649,93660.0,93659.0,3.53e-05]
[1735509053505,4.34327169,93660.0,93659.0,3.53e-05]
[1735509053665,4.37778292,93660.0,93659.0,3.53e-05]
[1735509053879,4.34327169,93660.0,93659.0,3.53e-05]
[1735509054711,4.62798879,93660.0,93659.0,3.53e-05]
[1735509055472,0.0763,93656.0,93653.0,0.00051035]
[1735509055713,4.23826145,93655.0,93653.0,0.00051035]
[1735509055935,4.236681,93654.0,93653.0,0.00051035]
[1735509056492,0.02168565,93654.0,93653.0,0.00051035]
[1735509056689,4.25836665,93654.0,93653.0,0.00051035]
[1735509059675,4.37426802,93654.0,93653.0,0.00051035]
[1735509059807,0.1,93652.0,93651.0,8.55e-05]
[1735509060014,0.1,93652.0,93651.0,0.00023837]
[1735509060208,4.336681,93652.0,93651.0,0.00023837]
[1735509060452,4.33826145,93652.0,93651.0,0.00023837]
[1735509060796,4.57522329,93652.0,93651.0,0.00023837]
[1735509060970,4.59532849,93652.0,93651.0,0.00023837]
[1735509061230,4.59961149,93652.0,93651.0,0.00023837]
[1735509062290,4.36264965,93652.0,93651.0,0.00023837]
[1735509064035,0.1,93651.0,93637.0,8.53e-05]
[1735509064236,4.236681,93650.0,93646.0,0.0001935]
[1735509064489,4.2381497,93650.0,93646.0,0.0001935]
[1735509064694,4.236681,93649.0,93646.0,0.0001935]
[1735509065220,0.0014687,93648.0,93646.0,0.0001935]
[1735509065502,4.236681,93647.0,93646.0,0.0001935]
[1735509066159,4.25824935,93647.0,93646.0,0.0001935]
[1735509066741,4.25824935,93647.0,93621.0,0.07952402]
[1735509066941,4.236681,93646.0,93621.0,0.07967669]
[1735509067559,0.00146315,93645.0,93621.0,0.07967669]
[1735509067766,4.236681,93644.0,93621.0,0.07967669]
[1735509067983,0.09484088,93640.0,93621.0,0.07967669]
[1735509068192,4.236681,93639.0,93622.0,0.07952402]
[1735509068594,0.00146315,93638.0,93622.0,0.07952402]
[1735509068769,4.236681,93637.0,93622.0,0.07952402]
[1735509069190,0.00146315,93636.0,93622.0,0.07952402]
[1735509069390,4.236681,93635.0,93622.0,0.07952402]
[1735509069798,0.00146315,93634.0,93622.0,0.07952402]
[1735509070005,4.236681,93633.0,93622.0,0.07952402]
[1735509070209,0.00146315,93633.0,93622.0,0.07952402]
[1735509070405,4.236681,93632.0,93622.0,0.07952402]
[1735509070948,0.00146315,93631.0,93622.0,0.07952402]
[1735509071161,4.236681,93630.0,93622.0,0.07952402]
[1735509071337,0.00146315,93630.0,93622.0,0.07952402]
[1735509071538,4.236681,93629.0,93622.0,0.07952402]
[1735509071891,0.00146315,93629.0,93622.0,0.07952402]
[1735509072066,4.236681,93628.0,93622.0,0.07952402]
[1735509072378,0.00146315,93627.0,93622.0,0.07952402]
[1735509072527,4.236681,93626.0,93622.0,0.07952402]
[1735509072928,0.00146315,93625.0,93622.0,0.07952402]
[1735509073127,4.236681,93630.0,93622.0,0.07952402]
[1735509073423,0.00146315,93624.0,93622.0,0.07952402]
[1735509073583,4.236681,93631.0,93622.0,0.07952402]
[1735509073811,4.236681,93630.0,93623.0,0.07952402]
[1735509074121,0.00146315,93630.0,93623.0,0.07952402]
[1735509074317,4.236681,93629.0,93623.0,0.07952402]
[1735509074885,4.236681,93640.0,93623.0,0.07952402]
[1735509075109,0.001,93630.0,93623.0,0.07952402]
[1735509075305,0.001,93630.0,93627.0,0.07952402]
[1735509075306,3.136,93629.0,93627.0,0.07952402]
[1735509075481,3.016,93629.0,93628.0,0.07952402]
[1735509075682,4.236681,93640.0,93636.0,0.07952402]
[1735509075904,4.236681,93640.0,93637.0,0.07952402]
[1735509076084,4.236681,93640.0,93638.0,0.07952402]
[1735509076312,4.238681,93640.0,93639.0,0.07952402]
[1735509077652,4.236681,93640.0,93639.0,0.15602402]
[1735509077864,0.00139295,93640.0,93639.0,0.15602402]
[1735509078292,4.236681,93640.0,93639.0,0.15502402]
[1735509078482,0.00140328,93640.0,93639.0,0.07852402]
[1735509078899,4.236681,93647.0,93639.0,0.07852402]
[1735509079051,4.236681,93651.0,93639.0,0.07852402]
[1735509079256,0.001,93640.0,93639.0,0.07852402]
[1735509079479,0.001,93640.0,93623.0,8.53e-05]
[1735509079480,4.237681,93640.0,93623.0,0.03132369]
[1735509079703,4.236681,93639.0,93623.0,0.03132369]
[1735509079890,0.00139993,93639.0,93623.0,0.03132369]
[1735509080085,4.236681,93638.0,93623.0,0.03132369]
[1735509080675,0.09484088,93632.0,93623.0,0.03132369]
[1735509080873,4.236681,93631.0,93623.0,0.03132369]
[1735509081302,0.00139993,93630.0,93623.0,0.03132369]
[1735509081548,4.236681,93629.0,93623.0,0.03132369]
[1735509082045,0.00139993,93628.0,93623.0,0.03132369]
[1735509082266,4.236681,93627.0,93623.0,0.03132369]
[1735509082789,0.00139993,93626.0,93622.0,0.00276269]
[1735509082960,4.236681,93629.0,93622.0,0.00276269]
[1735509083121,0.00139993,93625.0,93622.0,0.00276269]
[1735509083321,4.236681,93624.0,93622.0,0.00276269]
[1735509083579,0.00139993,93623.0,93622.0,0.00276269]
[1735509083704,4.33152188,93628.0,93622.0,0.00276269]
[1735509083900,4.236681,93627.0,93622.0,0.00276269]
[1735509084130,4.23808093,93627.0,93622.0,0.00276269]
[1735509084328,0.001,93625.0,93622.0,0.00276269]
[1735509084545,4.236681,93624.0,93621.0,0.00015267]
[1735509084761,4.236681,93626.0,93621.0,0.00291536]
[1735509084921,0.00139993,93624.0,93622.0,0.00276269]
[1735509085121,4.236681,93623.0,93621.0,0.00291536]
[1735509085346,4.236681,93626.0,93622.0,0.00276269]
[1735509085528,4.33152188,93626.0,93621.0,0.00291536]
[1735509085732,4.33152188,93626.0,93606.0,0.0765]
[1735509085733,4.236681,93625.0,93606.0,0.07419065]
[1735509085933,0.00982346,93624.0,93606.0,0.06766595]
[1735509086208,0.00985199,93617.0,93606.0,0.06766595]
[1735509086411,0.01005168,93614.0,93592.0,0.045]
[1735509086619,4.236681,93613.0,93592.0,0.045]
[1735509086803,0.01056524,93612.0,93592.0,0.045]
[1735509087006,4.236681,93611.0,93592.0,0.045]
[1735509087314,0.01062232,93610.0,93592.0,0.045]
[1735509087516,4.236681,93609.0,93592.0,0.045]
[1735509087718,0.01067938,93608.0,93592.0,0.045]
[1735509087839,4.236681,93607.0,93591.0,0.00035222]
[1735509088037,0.048,93609.0,93577.0,8.53e-05]
[1735509088038,0.01070792,93592.0,93577.0,8.53e-05]
[1735509088292,0.048,93609.0,93577.0,8.53e-05]
[1735509088293,0.01159267,93585.0,93577.0,8.53e-05]
[1735509088465,0.0117925,93578.0,93577.0,8.53e-05]
[1735509088667,4.2484735,93578.0,93577.0,8.53e-05]
[1735509088873,4.3245735,93578.0,93577.0,8.53e-05]
[1735509089072,4.3245735,93578.0,93573.0,0.00022404]
[1735509089272,4.3245735,93578.0,93557.0,8.54e-05]
[1735509089273,0.1,93570.0,93557.0,8.54e-05]
[1735509089478,0.11256339,93566.0,93557.0,8.54e-05]
[1735509089672,4.34924439,93566.0,93557.0,8.54e-05]
[1735509089888,4.24924439,93566.0,93557.0,8.54e-05]
[1735509090087,0.01256339,93566.0,93557.0,8.54e-05]
[1735509090336,0.0814,93546.0,93533.0,0.01693374]
[1735509090539,0.01359157,93534.0,93533.0,0.01693374]
[1735509090745,4.25027257,93534.0,93533.0,0.01693374]
[1735509091545,4.25042498,93534.0,93533.0,0.01693374]
[1735509091752,4.25042498,93534.0,93533.0,0.01193374]
[1735509092162,4.25042498,93534.0,93533.0,0.00808765]
[1735509092498,4.59950542,93534.0,93533.0,0.00808765]
[1735509092654,4.59950542,93534.0,93512.0,8.54e-05]
[1735509092980,0.01510604,93513.0,93512.0,8.54e-05]
[1735509093182,4.25178704,93513.0,93512.0,8.54e-05]
[1735509094884,2.23310604,93513.0,93512.0,8.54e-05]
[1735509095490,1.33310604,93513.0,93512.0,8.54e-05]
[1735509096282,1.22910604,93513.0,93512.0,8.54e-05]
[1735509096642,0.45510604,93513.0,93512.0,8.54e-05]
[1735509096987,0.41210604,93513.0,93512.0,8.54e-05]
[1735509103075,0.35346442,93513.0,93512.0,8.54e-05]
[1735509103272,0.35446442,93513.0,93512.0,0.0030854]
[1735509103822,0.35346442,93513.0,93512.0,8.54e-05]
[1735509104037,0.35446442,93513.0,93512.0,0.0030854]
[1735509105502,0.01546442,93513.0,93512.0,0.0030854]
[1735509113613,0.01563542,93513.0,93512.0,0.0030854]
[1735509114948,0.001171,93513.0,93512.0,0.0030854]
[1735509115159,0.01214728,93540.0,93512.0,0.0030854]
[1735509115360,4.236681,93539.0,93512.0,0.00359433]
[1735509115577,4.279558,93546.0,93512.0,0.00359433]
[1735509115780,4.236681,93545.0,93512.0,0.00359433]
[1735509116351,4.236681,93545.0,93512.0,0.00059433]
[1735509116707,4.336681,93545.0,93512.0,0.00159433]
[1735509116892,4.236681,93544.0,93512.0,0.00059433]
[1735509118106,0.1291,93543.0,93510.0,0.10415216]
[1735509118321,4.236681,93542.0,93510.0,0.10415216]
[1735509118753,4.236681,93542.0,93510.0,0.09915216]
[1735509121151,0.0796,93543.0,93510.0,0.09915216]
[1735509121401,4.236681,93542.0,93510.0,0.09915216]
[1735509121566,4.236681,93542.0,93511.0,0.00991522]
[1735509122387,4.236681,93542.0,93510.0,0.09915216]
[1735509124910,4.236681,93542.0,93510.0,0.10215216]
[1735509125130,4.236681,93542.0,93510.0,0.10223766]
[1735509125341,4.236681,93542.0,93512.0,0.0825]
[1735509125519,4.236852,93542.0,93513.0,0.05046925]
[1735509125734,4.236681,93541.0,93513.0,0.05046925]
[1735509126701,4.33128131,93541.0,93513.0,0.05046925]
[1735509126935,4.236681,93540.0,93513.0,0.05046925]
[1735509127370,4.236681,93540.0,93513.0,0.05346925]
[1735509127598,3.568,93540.0,93513.0,0.0524]
[1735509127799,3.574,93540.0,93513.0,0.09581377]
[1735509128213,3.289,93540.0,93513.0,0.09581377]
[1735509128416,3.617,93540.0,93513.0,0.0524]
[1735509128623,3.617,93540.0,93513.0,0.003]
[1735509128624,0.0752,93540.0,93513.0,0.003]
[1735509128816,4.286281,93539.0,93510.0,0.09923766]
[1735509129013,4.236681,93538.0,93510.0,0.09923766]
[1735509129656,4.236681,93538.0,93510.0,0.09163766]
[1735509130065,0.09460031,93534.0,93510.0,0.09163766]
[1735509130301,4.236681,93533.0,93513.0,0.004]
[1735509130497,4.236681,93533.0,93510.0,0.09163766]
[1735509131340,4.236681,93533.0,93510.0,0.08882546]
[1735509131599,0.09460031,93521.0,93513.0,0.002]
[1735509131829,4.236681,93520.0,93510.0,0.08882546]
[1735509133099,0.09460031,93514.0,93510.0,0.08882546]
[1735509133338,4.236681,93513.0,93510.0,0.08882546]
[1735509133524,0.0752,93512.0,93510.0,0.08882546]
[1735509133674,4.236681,93511.0,93510.0,0.07594544]
[1735509133880,0.1,93502.0,93501.0,0.18513678]
[1735509134112,0.1,93482.0,93436.0,4e-05]
[1735509134332,0.01,93501.0,93428.0,0.19187203]
[1735509134333,0.0752,93467.0,93428.0,0.16205206]
[1735509134559,0.1,93462.0,93428.0,0.12860324]
[1735509134770,3.966681,93461.0,93428.0,0.12860324]
[1735509134977,0.1,93432.0,93428.0,0.12860324]
[1735509135186,3.966681,93431.0,93428.0,0.12860324]
[1735509135419,0.4,93429.0,93428.0,0.06381152]
[1735509135630,0.4,93429.0,93425.0,0.24042965]
[1735509135631,0.1,93426.0,93425.0,0.00058962]
[1735509135842,0.1,93419.0,93418.0,0.29176396]
[1735509136050,0.48496835,93370.0,93305.0,0.10670104]
[1735509136253,0.01062525,93369.0,93363.0,0.1]
[1735509136456,0.77496835,93367.0,93362.0,0.095]
[1735509136706,0.76996835,93366.0,93363.0,0.06607045]
[1735509136916,0.01699123,93429.0,93322.0,0.042936]
[1735509136917,0.7038979,93350.0,93322.0,0.042936]
[1735509137146,2.5108979,93349.0,93323.0,0.10398632]
[1735509137355,0.7038979,93348.0,93334.0,8.55e-05]
[1735509137508,0.00050797,93349.0,93335.0,0.10398632]
[1735509137717,0.7038979,93348.0,93334.0,8.55e-05]
[1735509137917,1.51693573,93348.0,93335.0,0.10398632]
[1735509138292,0.7038979,93347.0,93335.0,0.10398632]
[1735509138500,0.7038979,93347.0,93336.0,0.00107107]
[1735509138706,0.5812979,93346.0,93337.0,0.10398632]
[1735509138911,0.5812979,93346.0,93338.0,0.01046629]
[1735509139115,0.5812979,93346.0,93339.0,0.10398632]
[1735509139516,0.32126853,93345.0,93339.0,0.10398632]
[1735509139723,0.83986643,93345.0,93339.0,0.10398632]
[1735509139899,0.5185979,93344.0,93340.0,0.00107106]
[1735509140198,0.5185979,93344.0,93341.0,0.10398632]
[1735509140431,0.5185979,93344.0,93342.0,0.01039863]
[1735509140606,1.32762531,93344.0,93343.0,0.10398632]
[1735509140990,0.75427389,93344.0,93343.0,0.10398632]
[1735509141168,0.75427389,93344.0,93304.0,0.04353463]
[1735509141369,0.5185979,93343.0,93320.0,0.19908563]
[1735509141587,0.5185979,93343.0,93321.0,0.13429352]
[1735509142181,0.5185979,93343.0,93284.0,0.25269585]
[1735509142182,0.35597926,93315.0,93257.0,0.113]
[1735509142382,0.35597926,93334.0,93300.0,0.19908563]
[1735509142596,0.35597926,93333.0,93310.0,0.19908563]
[1735509142807,0.0826,93370.0,93323.0,0.01444818]
[1735509142808,0.09416205,93330.0,93323.0,0.01444818]
[1735509143033,0.35597926,93329.0,93324.0,0.02135338]
[1735509143237,0.35587226,93329.0,93324.0,0.02135338]
[1735509143717,0.2843747,93329.0,93328.0,0.10398632]
[1735509143872,0.18038838,93329.0,93328.0,0.10398632]
[1735509144260,0.18038838,93329.0,93311.0,0.214336]
[1735509144261,0.18038838,93329.0,93281.0,0.042949]
[1735509144378,0.18038838,93329.0,93300.0,0.10398632]
[1735509144574,0.18038838,93329.0,93301.0,0.0104576]
[1735509144781,0.18038838,93329.0,93310.0,0.19908563]
[1735509144991,0.18058838,93329.0,93311.0,0.10398632]
[1735509145394,0.18038838,93328.0,93301.0,0.0104576]
[1735509145599,0.18038838,93328.0,93311.0,0.10398632]
[1735509145801,0.18038838,93328.0,93310.0,0.19908563]